Workbook

Sheet Instructions
C2: HSM Part C Training Tool Instructions
C4: Overview
C5: This series of spreadsheets has been developed to assist in the application of the predictive methods contained in the Highway Safety Manual (HSM), 1st Edition for analyzing: urban and suburban arterials, rural multilane roads, and rural two lane roads.
C7: Data Color Guidelines
D9: Required user input data
D11: Required user input data restricted to dropdown values
D13: Automatically updated information based on previous user input data
D15: User work space (notes, comments, etc.)
C17: Upon Opening the File
C18: 1. Ensure that macros are enabled in Excel. (Refer to Microsoft Help for more information about enabling macros.)
C19: 2. Read the terms of use and follow the directions on the prompts.
C20: 3. If analyzing a new project, follow the prompts to save as a new file.
C21: 4. Read all instructions before proceeding.
C23: General Steps for Project Safety Performance Analysis
C24: 1. Navigate to the “Project Information” tab.
C25: 2. Using the color guidelines above, populate the required information under General Information.
C26: 3. Push the “Update Element Table” button to set up the element table. *Note: Elements cannot be added to the analysis once this button has been pushed.
C27: 4. Fill in the Route, Location Description, and Jurisdiction for each element. For intersections, also select whether or not the intersection is signalized. And where applicable, select divided or undivided for each segment.
C28: 5. Once all of the information has been entered, push the “Proceed to 1st Element” button.
C29: 6. On the current tab (either “Segment 1” or “Intersection 1”), enter all of the required information (refer to color guidelines).
C30: 7. Ensure that all necessary information has been entered, then push the “Next Element” button.
C31: 8. Repeat steps 6 and 7 for all project elements.
C32: 9. On the tab for the final project element, push the "Generate Report" button to run the analysis and redirect to the “Report” page, giving a summary of the analysis results.
C33: 10. At this time, any of the input information on the element tabs can be altered if desired. The results will update automatically.
C35: General Steps for a Multi-Year Project Safety Performance Analysis
C36: 1. Complete all steps for the Project Safety Performance Analysis first.
C37: 2. Navigate to the “Multi-Year Analysis Inputs” tab.
C38: 3. Enter the required information (Input Data*). Refer to color guidelines as necessary. *Note: the Traffic Growth Rate is a linear growth rate per year (i.e. the volume increases by the same number of vehicles each year) and should be entered as a percent, not as a decimal.
C39: 4. Once all of the information is complete, push the “Run Multi-Year Analysis” button to perform the analysis.
C40: 5. The “Multi-Year Summary Report” tab provides a summary table of the multi-year analysis, with the expected average crash frequency, the potential for safety improvement, and a discussion of the results for the analysis period.

Sheet Project Information
A1: PROJECT SAFETY PERFORMANCE ANALYSIS INPUT SHEET - RURAL 2-LANE ROADS | K1: User Work Space
A2: General Information
A3: Project Name | B3: Practical Case Study | D3: Contact Email | F3: email
A4: Project Description | B4: Three Signalized Intersections | D4: Contact Phone | F4: 1234567891
A5: Reference Number | B5: STARS Report A-1 | D5: Date Performed | F5: 2011-05-12
A6: Analyst | B6: John Smith | D6: Analysis Year | F6: 2011
A7: Agency/Company | B7: ABC Company | D7: Multiple Year Analysis?
A11: # of Segments in Analysis | B11: 1 | D11: Predicted/expected crashes
A12: # of Intersections in Analysis | B12: 1
E13: ANALYSIS YEAR
A14: INDIVIDUAL PROJECT ELEMENTS | B14: LOCATION INFORMATION | D14: JURISDICTION | F14: INTERSECTIONS ONLY | G14: DETERMINING FOR PROJECT ELEMENT:
B15: Route | C15: Location Description | F15: Signalized or Unsignalized? | G15: Typical site safety performance (predicted average crash frequency) | H15: Anticipated long-term safety performance (expected average crash frequency)
A17: SEGMENTS
G18: Yes | H18: No
A19: INTERSECTIONS
AL29: Base Year
AL30: 2011

Sheet Report
A1: PROJECT SAFETY PERFORMANCE SUMMARY REPORT | N1: User Work Space
A2: General Information
A3: Project Name | B3: ='Project Information'!B3 -> Practical Case Study
A4: Project Description | B4: ='Project Information'!B4 -> Three Signalized Intersections
A5: Reference Number | B5: ='Project Information'!B5 -> STARS Report A-1
A6: Analyst | B6: ='Project Information'!B6 -> John Smith
A7: Agency/Company | B7: ='Project Information'!B7 -> ABC Company
A8: Contact Email | B8: ='Project Information'!F3 -> email
A9: Contact Phone | B9: ='Project Information'!F4 -> 1234567891
A10: Date Completed | B10: ='Project Information'!F5 -> 2011-05-12
A11: PROJECT SUMMARY
B12: Total Crashes/yr | E12: Fatal and Injury Crashes/yr | H12: Property Damage Only Crashes/yr
A13: Project Element | B13: (KABCO) | E13: (KABC) | H13: (PDO)
B14: Predicted average crash frequency | C14: Expected average crash frequency | D14: Potential for Improvement | E14: Predicted average crash frequency | F14: Expected average crash frequency | G14: Potential for Improvement | H14: Predicted average crash frequency | I14: Expected average crash frequency | J14: Potential for Improvement
B15: Npredicted (KABCO) | C15: Nexpected (KABCO) | E15: Npredicted (KABC) | F15: Nexpected (KABC) | H15: Npredicted (O) | I15: Nexpected (O)
A16: INDIVIDUAL SEGMENTS
A18: INDIVIDUAL INTERSECTIONS
A20: COMBINED (sum of column)
A22: PROJECT SUMMARY -- Site-Specific EB Method Summary Results for Rural 2-Lane Roads
A24: Crash severity level | E24: N predicted(PROJECT) | G24: N expected (PROJECT) | I24: N potential for improvement (PROJECT)
E25: Predicted average crash frequency - Average safety performance of projects consisting of similar elements (anticipated average crashes/yr) | G25: Expected average crash frequency - Actual long-term safety performance of the project (anticipated average crashes/yr) | I25: Potential for Safety Improvement (anticipated average crashes/yr)
A26: Fatal and injury (KABC) | E26: =+E20 -> 0.0 | G26: =+F20 -> 0.0 | I26: =+IF(G26>=E26,+G26-E26,"N/A") -> 0.0
A27: Property damage only (PDO) | E27: =+H20 -> 0.0 | G27: =+I20 -> 0.0 | I27: =+IF(G27>=E27,+G27-E27,"N/A") -> 0.0
A28: Total (KABCO) | E28: =+B20 -> 0.0 | G28: =+C20 -> 0.0 | I28: =+IF(G28>=E28,+G28-E28,"N/A") -> 0.0
AV30: PROJECT SUMMARY
A31: Discussion of Results | AV31: Fatal and Injury Crashes/yr
A32: Given the potential effects of project characteristics on safety performance, results indicate that:
A33: =IFERROR(+CONCATENATE("1. It is anticipated that the project will, on average, experience ",+ROUND(G28,1)," crashes per year (",ROUND(G26,1)," fatal and injury crashes per year; and ",+ROUND(G27,1)," property damage only crashes per year)."),"") -> 1. It is anticipated that the project will, on average, experience 0 crashes per year (0 fatal and injury crashes per year; and 0 property damage only crashes per year).
A34: =IFERROR(+CONCATENATE("2. A similar project is anticipated, on average, to experience ",+(ROUND(E28,1))," crashes per year (",+ROUND(E26,1)," fatal and injury crashes per year; and ",+ROUND(E27,1)," property damage only crashes per year)."),"") -> 2. A similar project is anticipated, on average, to experience 0 crashes per year (0 fatal and injury crashes per year; and 0 property damage only crashes per year).
A35: =IFERROR(+IF(I28="N/A","",+CONCATENATE("3. It is anticipated the project has, on average, a potential for safety improvement of ",ROUND(I28,1)," crashes per year (",+ROUND(I26,1)," fatal and injury crashes per year; and ",+ROUND(I27,1)," property damage only crashes per year).")),"") -> 3. It is anticipated the project has, on average, a potential for safety improvement of 0 crashes per year (0 fatal and injury crashes per year; and 0 property damage only crashes per year).

Sheet Rural 2-Lane Site Total (hidden)
B3: Worksheet 3A -- Predicted and Observed Crashes by Severity and Site Type Using the Site-Specific EB Method | O3: User Work Space
B5: (1) | D5: (2) | E5: (3) | F5: (4) | G5: (5) | H5: (5) | I5: (5) | J5: (6) | K5: (7) | L5: (8)
B6: Site type | D6: Predicted average crash frequency (crashes/year) | G6: Observed crashes, Nobserved (crashes/year) | J6: Overdispersion Parameter, k | K6: Weighted adjustment, w | L6: Expected average crash frequency, Nexpected
D9: N predicted (TOTAL) | E9: N predicted (FI) | F9: N predicted (PDO) | G9: N predicted (TOTAL) | H9: N predicted (FI) | I9: N predicted (PDO) | K9: Equation A-5 from Part C Appendix | L9: Equation A-4 from Part C Appendix
B12: ROADWAY SEGMENTS
B14: INTERSECTIONS
B16: COMBINED (sum of column)
C20: Worksheet 3B -- Site-Specific EB Method Summary Results
C22: (1) | F22: (2) | I22: (3)
C23: Crash severity level | F23: N predicted | I23: N expected
C24: Total | F24: (2)COMB from Worksheet 3A | I24: (8)COMB from Worksheet 3A
F25: =+D16 -> 0.000 | I25: =+L16 -> 0.0
C26: Fatal and Injury (FI) | F26: (3)COMB from Worksheet 3A | I26: (3)TOTAL * (2)FI / (2) TOTAL
F27: =+E16 -> 0.000 | I27: =+L16*E16/D16 -> 
C28: Property Damage Only (PDO) | F28: (4)COMB from Worksheet 3A | I28: (3)TOTAL * (2)PDO / (2) TOTAL
F29: =+F16 -> 0.000 | I29: =+L16*F16/D16 -> 

Sheet Multi-Year Summary (hidden)
A1: MULTIPLE-YEAR ANALYSIS SUMMARY FOR RURAL 2-LANE ROADS
A4: General Information
A5: Base Year
A6: Analysis Period (Years)
A7: Linear Traffic Growth Rate (annual %)
A10: =CONCATENATE(C6,"-Year Analysis Summary Report") -> -Year Analysis Summary Report
A11: Analysis Year | B11: Predicted Average Crash Frequency (Npredicted) | E11: Expected Average Crash Frequency (Nexpected) | H11: Potential for Safety Improvement (crashes/yr)
B12: KABC | C12: PDO | D12: Total (KABCO) | E12: KABC | F12: PDO | G12: Total (KABCO) | H12: KABC | I12: PDO | J12: Total (KABCO)

Sheet Multi-Year Analysis Report (hidden)
A1: MULTIPLE YEAR PROJECT SAFETY PERFORMANCE SUMMARY REPORT FOR RURAL 2-LANE ROADS | M1: User Work Space
A2: General Information
A3: Project Name | B3: ='Project Information'!B3 -> Practical Case Study
A4: Project Description | B4: ='Project Information'!B4 -> Three Signalized Intersections
A5: Reference Number | B5: ='Project Information'!B5 -> STARS Report A-1
A6: Analyst | B6: ='Project Information'!B6 -> John Smith
A7: Agency/Company | B7: ='Project Information'!B7 -> ABC Company
A8: Contact Email | B8: ='Project Information'!F3 -> email
A9: Contact Phone | B9: ='Project Information'!F4 -> 1234567891
A10: Date Completed | B10: ='Project Information'!F5 -> 2011-05-12
A11: Base Year
A12: Analysis Period (Years)
A13: Linear Traffic Growth Rate (annual %)
A14: PROJECT SUMMARY
A16: =CONCATENATE(B12,"-Year Analysis Summary Report") -> -Year Analysis Summary Report
A17: Analysis Year | B17: Predicted Average Crash Frequency (Npredicted) | E17: Expected Average Crash Frequency (Nexpected) | H17: Potential for Safety Improvement (crashes/yr)
B18: KABC | C18: PDO | D18: Total (KABCO) | E18: KABC | F18: PDO | G18: Total (KABCO) | H18: KABC | I18: PDO | J18: Total (KABCO)
A19: =B11 -> 0
A20: Total
A23: PROJECT SUMMARY -- Site-Specific EB Method Summary Results for Rural 2-Lane Roads
E24: N predicted(PROJECT) | G24: N expected (PROJECT) | I24: N potential for improvement (PROJECT)
A25: Crash severity level | E25: =+CONCATENATE("Predicted average crash frequency - Average safety performance of projects consisting of similar elements (anticipated total number of crashes over ",B12," years)") -> Predicted average crash frequency - Average safety performance of projects consisting of similar elements (anticipated total number of crashes over years) | G25: =+CONCATENATE("Expected average crash frequency - Average long-term safety performance of the project (anticipated total number of crashes over ",B12," years)") -> Expected average crash frequency - Average long-term safety performance of the project (anticipated total number of crashes over years) | I25: =+CONCATENATE("Potential safety performance - Average project performance compared to threshold set by typical other similar projects (anticipated total number of crashes over ",B12," years)") -> Potential safety performance - Average project performance compared to threshold set by typical other similar projects (anticipated total number of crashes over years)
A26: Fatal and injury crashes (KABC) | E26: =+B20 -> 0.0 | G26: =+E20 -> 0.0 | I26: =+IF(G26>=E26,+G26-E26,"N/A") -> 0.0
A27: Property damage only crashes (PDO) | E27: =+C20 -> 0.0 | G27: =+F20 -> 0.0 | I27: =+IF(G27>=E27,+G27-E27,"N/A") -> 0.0
A28: Total crashes (KABCO) | E28: =+D20 -> 0.0 | G28: =+G20 -> 0.0 | I28: =+IF(G28>=E28,+G28-E28,"N/A") -> 0.0
A31: Discussion of Results
A32: =+CONCATENATE("Given the potential effects of project characteristics on safety performance and assuming a ",100*B13, " % growth in AADT over a ",B12, " year analysis period with ",B11," as the base year, results indicate that:") -> Given the potential effects of project characteristics on safety performance and assuming a 0 % growth in AADT over a year analysis period with as the base year, results indicate that:
A33: =+CONCATENATE("1. The project is anticipated, on average, to experience ", +ROUND(G28,1)," crashes over a ",B12, " year analysis period (",+(ROUND(G26,1))," fatal and injury crashes; and ",+ROUND(G27,1)," property damage only crashes).") -> 1. The project is anticipated, on average, to experience 0 crashes over a year analysis period (0 fatal and injury crashes; and 0 property damage only crashes).
A34: =+CONCATENATE("2. A similar project is anticipated, on average, to experience ", +(ROUND(E28,1))," crashes over a ",B12, " year analysis period (", +ROUND(E26,1)," fatal and injury crashes over ",B12," years; and ",+ROUND(E27,1)," property damage only crashes over ",B12," years).") -> 2. A similar project is anticipated, on average, to experience 0 crashes over a year analysis period (0 fatal and injury crashes over years; and 0 property damage only crashes over years).
A35: =+IF(I28="N/A","",+CONCATENATE("3. It is anticipated the project will have an average potential for safety improvement of ",ROUND(I28,1)," crashes over a ",B12, " year analysis period (",+ROUND(I26,1)," fatal and injury crashes over ",B12," years; and ",+ROUND(I27,1)," property damage only crashes over ",B12," years).")) -> 3. It is anticipated the project will have an average potential for safety improvement of 0 crashes over a year analysis period (0 fatal and injury crashes over years; and 0 property damage only crashes over years).

Sheet Multi-Year Template (hidden)
A1: MULTIPLE-YEAR ANALYSIS FOR RURAL 2-LANE ROADS - INPUTS | M1: User Work Space
A3: General Information
A4: Project Name | C4: ='Project Information'!B3 -> Practical Case Study | F4: Analyst | H4: ='Project Information'!B6 -> John Smith
A5: Project Description | C5: ='Project Information'!B4 -> Three Signalized Intersections | F5: Contact Email | H5: ='Project Information'!F3 -> email
A6: Reference Number | C6: ='Project Information'!B5 -> STARS Report A-1 | F6: Contact Phone | H6: ='Project Information'!F4 -> 1234567891
A7: Agency/Company | C7: ='Project Information'!B7 -> ABC Company | F7: Date Performed | H7: ='Project Information'!F5 -> 2011-05-12
A10: Input Data
A11: Base Year | C11: 2011
A12: Analysis Period (Years) | C12: 1
A13: Linear Traffic Growth (annual %) | C13: 1.0%

Sheet Segment Template (hidden)
A1: Worksheet 1A -- General Information and Input Data for Rural Two-Lane Two-Way Roadway Segments | P1: User Work Space
AL2: Tables Affiliated with Crash Modification Factors:
A3: General Information | G3: Location Information | Y3: Supplemental CMF Calculations for Shoulders:
A4: Analyst | C4: ='Project Information'!$B$6 -> John Smith | G4: Roadway | J4: =VLOOKUP('Segment Template'!$C$7,'Project Information'!$A$16:$H$103,2,FALSE) -> 
A5: Agency or Company | C5: ='Project Information'!$B$7 -> ABC Company | G5: Roadway Section | J5: =VLOOKUP('Segment Template'!$C$7,'Project Information'!$A$16:$H$103,3,FALSE) ->  | AL5: Table 10-8: CMF for Lane Width on Roadway Segments (CMFra)
A6: Date Performed | C6: ='Project Information'!$F$5 -> 2011-05-12 | G6: Jurisdiction | J6: =VLOOKUP('Segment Template'!$C$7,'Project Information'!$A$16:$H$103,4,FALSE) ->  | Y6: Calculated Right Shoulder Width (CMFwra) : | AC6: =IF($G$10>2000,(VLOOKUP($H$12,$AL$25:$AP$33,5,FALSE)),IF($G$10<400,(VLOOKUP($H$12,$AL$25:$AP$33,3,FALSE)),(VLOOKUP($H$12,$AL$25:$AP$33,4)))) -> 1.10 | AE6: Calculated Left Shoulder Width (CMFwra) : | AI6: =IF($G$10>2000,(VLOOKUP($J$12,$AL$25:$AP$33,5,FALSE)),IF($G$10<400,(VLOOKUP($J$12,$AL$25:$AP$33,3,FALSE)),(VLOOKUP($J$12,$AL$25:$AP$33,4)))) -> 1.10
A7: Segment for Analysis | C7: Segment 1 | G7: Analysis Year | J7: ='Project Information'!$F$6 -> 2011 | AL7: Lane Width (ft) | AN7: AADT (veh/day)
A8: Input Data | G8: Site Conditions | K8: Base Conditions | Y8: Calculated Right Shoulder Type (CMF tra) : | AC8: =IF($H$13="Paved",(HLOOKUP($H$12,'Segment Tables'!$S$8:$AA$12,2,FALSE)),(IF($H$13="Gravel",(HLOOKUP($H$12,'Segment Tables'!$S$8:$AA$12,3,FALSE)),(IF($H$13="Turf",(HLOOKUP($H$12,'Segment Tables'!$S$8:$AA$12,5,FALSE)),HLOOKUP($H$12,'Segment Tables'!$S$8:$AA$12,4,FALSE)))))) -> 1.00 | AE8: Calculated Left Shoulder Type (CMF tra) : | AI8: =IF($J$13="Paved",(HLOOKUP($J$12,'Segment Tables'!$S$8:$AA$12,2,FALSE)),(IF($J$13="Gravel",(HLOOKUP($J$12,'Segment Tables'!$S$8:$AA$12,3,FALSE)),(IF($J$13="Turf",(HLOOKUP($J$12,'Segment Tables'!$S$8:$AA$12,5,FALSE)),HLOOKUP($J$12,'Segment Tables'!$S$8:$AA$12,4,FALSE)))))) -> 1.00 | AN8: < 400 | AO8: 400 to 2000 | AP8: > 2000
A9: Length of segment, L (mi) | K9: -- | AL9: 9 | AN9: 1.05 | AO9: =+($G$10-400)*0.000281+1.05 -> 0.94 | AP9: 1.50
A10: AADT (veh/day) | D10: AADTMAX = | E10: 17,800 | F10: (veh/day) | K10: -- | N10: =IF(G10>E10,"AADT out of range","AADT OK") -> AADT OK | Y10: Computed Right Shoulder CMF2r : | AC10: =(+$AC$6*$AC$8-1)*(IF('Segment Tables'!$D$23="No",(('Segment Tables'!$G$29+'Segment Tables'!$G$34+'Segment Tables'!$G$36)/100),(('Segment Tables'!$K$29+'Segment Tables'!$K$34+'Segment Tables'!$K$36)/100)))+1 -> 1.06 | AE10: Computed Left Shoulder CMF2r : | AI10: =(+$AI$6*$AI$8-1)*(IF('Segment Tables'!$D$23="No",(('Segment Tables'!$G$29+'Segment Tables'!$G$34+'Segment Tables'!$G$36)/100),(('Segment Tables'!$K$29+'Segment Tables'!$K$34+'Segment Tables'!$K$36)/100)))+1 -> 1.06 | AL10: 9.5 | AN10: =+(AN9+AN11)/2 -> 1.04 | AO10: =+(AO9+AO11)/2 -> 0.94 | AP10: =+(AP9+AP11)/2 -> 1.40
A11: Lane width (ft) | K11: 12 | AL11: 10 | AN11: 1.02 | AO11: =+($G$10-400)*0.000175+1.02 -> 0.95 | AP11: 1.30
A12: Shoulder width (ft) | G12: Right Shld: | I12: Left Shld: | K12: 6 | Y12: Supplemental CMF Calculations for Horizontal Curves: | AL12: 10.5 | AN12: =+(AN11+AN13)/2 -> 1.02 | AO12: =+(AO11+AO13)/2 -> 0.98 | AP12: =+(AP11+AP13)/2 -> 1.18
A13: Shoulder type | G13: Right Shld: | I13: Left Shld: | K13: Paved | AL13: 11 | AN13: 1.01 | AO13: =+($G$10-400)*0.000025+1.01 -> 1.00 | AP13: 1.05
A14: Length of horizontal curve (mi) | K14: 0 | Y14: Adjusted Curve Radius (if less than 100 ft): | AC14: =IF($G$15>0,IF($G$15<=100,100,$G$15),0) -> 0 | AL14: 11.5 | AN14: =+(AN13+AN15)/2 -> 1.01 | AO14: =+(AO13+AO15)/2 -> 1.00 | AP14: =+(AP13+AP15)/2 -> 1.03
A15: Radius of curvature (ft) | K15: 0 | N15: =IF(G14>0,IF(G15=0,"Value of radius must be > 0","Radius Value OK"),"Radius Value OK") -> Radius Value OK | AL15: 12 | AN15: 1.00 | AO15: 1.00 | AP15: 1.00
A16: Spiral transition curve (present/not present) | G16: Not Present | K16: Not Present | Y16: Adjusted Curve Length (if less than 100 ft): | AC16: =IF($G$14>0,IF($G$14<=100/5280,100/5280,$G$14),0) -> 0 | AL16: Note: The collision types related to lane width to which this CMF applies include single-vehicle run-off-the-road and multiple-vehicle head-on, opposite-direction sideswipe, and same-direction sideswipe crashes.
A17: Superelevation variance (ft/ft) | K17: < 0.01
A18: Grade (%) | K18: 0 | Y18: Numeric Value for S: | AC18: =IF(G16="Present",1,IF(G16="Not Present",0,0.5)) -> 0
A19: Driveway density (driveways/mile) | K19: 5
A20: Centerline rumble strips (present/not present) | G20: Not Present | K20: Not Present | Y20: Calculated Horizonatal Curve CMF: | AC20: =IF( $AC$16>0, ((1.55*$AC$16)+(80.2/$AC$14)-(0.012*(IF($AC$18="Present",TRUE,FALSE))))/(1.55*$AC$16), 1) -> 1.000
A21: Passing lanes [present (1 lane) /present (2 lane) / not present)] | G21: Not Present | K21: Not Present | AL21: Table 10-9: CMF for Shoulder Width on Roadway Segments (CMFwra)
A22: Two-way left-turn lane (present/not present) | G22: Not Present | K22: Not Present | Y22: Adjusted Horizontal Curve CMF: | AC22: =IF($AC$20<1,1,$AC$20) -> 1.000
A23: Roadside hazard rating (1-7 scale) | K23: 3 | AL23: Shoulder Width (ft) | AN23: AADT (veh/day)
A24: Segment lighting (present/not present) | G24: Not Present | K24: Not Present | AN24: < 400 | AO24: 400 to 2000 | AP24: > 2000
A25: Auto speed enforcement (present/not present) | G25: Not Present | K25: Not Present | AL25: 0 | AN25: 1.10 | AO25: =+($G$10-400)*0.00025+1.1 -> 1.00 | AP25: 1.50
A26: Calibration Factor, Cr | G26: 1.00 | K26: 1 | AL26: 1 | AN26: =+(AN25+AN27)/2 -> 1.09 | AO26: =+(AO25+AO27)/2 -> 1.01 | AP26: =+(AP25+AP27)/2 -> 1.40
A27: Average Annual Crash History (3 or 5-yr average) | AL27: 2 | AN27: 1.07 | AO27: =+($G$10-400)*0.000143+1.07 -> 1.01 | AP27: 1.30
A28: Segment crashes | F28: KABC | G28: Fatal and Injury Only | I28: 0.0 | N28: If inputs are complete, click for next element | AL28: 3 | AN28: =+(AN27+AN29)/2 -> 1.05 | AO28: =+(AO27+AO29)/2 -> 1.00 | AP28: =+(AP27+AP29)/2 -> 1.23
F29: PDO | G29: Property Damage Only | I29: 0.0 | AL29: 4 | AN29: 1.02 | AO29: =+($G$10-400)*0.00008125+1.02 -> 0.99 | AP29: 1.15 | AV29: Base AADT
A30: NOTES: * AADT: It is important to remember that the AADT(major) = AADT(major approach1) + AADT(minor approach2) (refer to p.10-6 in Part C of the HSM) | AL30: 5 | AN30: 1.01 | AO30: =(AO31+AO29)/2 -> 0.99 | AP30: 1.08
AL31: 6 | AN31: 1.00 | AO31: 1.00 | AP31: 1.00
AL32: 7 | AN32: 0.99 | AO32: =+(AO31+AO33)/2 -> 1.00 | AP32: 0.94
AL33: 8 | AN33: 0.98 | AO33: =+(($G$10-400)*-0.00006875)+0.98 -> 1.01 | AP33: 0.87
A34: Worksheet 1B -- Crash Modification Factors for Rural Two-Lane Two-Way Roadway Segments | AL34: Note: The collision types related to shoulder width to which this CMF applies include single-vehicle run-off-the-road and multiple-vehicle head-on, opposite-direction sideswipe, and same-direction sideswipe crashes.
A35: (1) | B35: (2) | C35: (3) | D35: (4) | E35: (5) | F35: (6) | G35: (7) | H35: (8) | I35: (9) | J35: (10) | K35: (11) | L35: (12) | M35: (13)
A36: CMF for Lane Width | B36: CMF for Shoulder Width and Type | C36: CMF for Horizontal Curves | D36: CMF for Super-elevation | E36: CMF for Grades | F36: CMF for Driveway Density | G36: CMF for Centerline Rumble Strips | H36: CMF for Passing Lanes | I36: CMF for Two-Way Left-Turn Lane | J36: CMF for Roadside Design | K36: CMF for Lighting | L36: CMF for Automated Speed Enforcement | M36: Combined CMF
A40: CMF 1r | B40: CMF 2r | C40: CMF 3r | D40: CMF 4r | E40: CMR 5r | F40: CMF 6r | G40: CMF 7r | H40: CMF 8r | I40: CMF 9r | J40: CMF 10r | K40: CMF 11r | L40: CMF 12r | M40: CMF comb
A41: from Equation 10-11 | B41: from Equation 10-12 | C41: from Equation 10-13 | D41: from Equations 10-14, 10-15, or 10-16 | E41: from Table 10-11 | F41: from Equation 10-17 | G41: from Section 10.7.1 | H41: from Section 10.7.1 | I41: from Equation 10-18 & 10-19 | J41: from Equation 10-20 | K41: from Equation 10-21 | L41: from Section 10.7.1 | M41: (1)x(2)x … x(11)x(12)
A45: =((IF($G$10>2000,(VLOOKUP($G$11,$AL$9:$AP$15,5,FALSE)),IF($G$10<400,(VLOOKUP($G$11,$AL$9:$AP$15,3,FALSE)),(VLOOKUP($G$11,$AL$9:$AP$15,4)))))-1)*(IF( 'Segment Tables'!D23="No", (('Segment Tables'!$G$29+'Segment Tables'!$G$34+'Segment Tables'!$G$36)/100),(('Segment Tables'!$K$29+'Segment Tables'!$K$34+'Segment Tables'!$K$36)/100)))+1 ->  | B45: =($AC$10+$AI$10)/2 -> 1.06 | C45: =+AC22 -> 1.00 | D45: =IF($G$17>=0.02,(1.06+3*($G$17-0.02)),IF($G$17<0.01,1,(1+6*($G$17-0.01)))) -> 1.00 | E45: =IF($G$18>6,1.16,(IF($G$18<=3,1,1.1))) -> 1.00 | F45: =IF($G$19>5,(0.322+$G$19*(0.05-0.005*LN($G$10)))/(0.322+5*(0.05-0.005*LN($G$10))),1) -> 1.00 | G45: =IF(G22="Present",1,IF($G$20="Present",0.94,1)) -> 1.00 | H45: =IF($G$21="Present (1 lane)",0.75,IF($G$21="Present (2 lanes)", 0.65, 1)) -> 1.00 | I45: =IF($G$22="Not Present",1,IF($G$19<=5,1,(1-(0.7*0.5*((0.0047*$G$19)+($G$19*$G$19*0.0024))/(1.199+(0.0047*$G$19)+(0.0024*$G$19*$G$19)))))) -> 1.00 | J45: =EXP($G$23*0.0668-0.6869)/EXP(-0.4865) -> 0.82 | K45: =IF($G$24="Present",(1-((1-(0.72*IF('Segment Tables'!$E$45="No",'Segment Tables'!$C$49,'Segment Tables'!$I$49))-(0.83*IF('Segment Tables'!$E$45="No",'Segment Tables'!$E$49,'Segment Tables'!$K$49)))*IF('Segment Tables'!$E$45="No",'Segment Tables'!$F$49,'Segment Tables'!$L$49))),1) -> 1.00 | L45: =IF($G$25="Present",0.93,1) -> 1.00 | M45: =+A45*B45*C45*D45*E45*F45*G45*H45*I45*J45*K45*L45 -> 
A49: Worksheet 1C -- Roadway Segment Crashes for Rural Two-Lane Two-Way Roadway Segments
A50: (1) | C50: (2) | D50: (3) | F50: (4) | H50: (5) | J50: (6) | K50: (7) | L50: (8)
A51: Crash Severity Level | C51: N spf rs | D51: Overdispersion Parameter, k | F51: Crash Severity Distribution | H51: N spf rs by Severity Distribution | J51: Combined CMFs | K51: Calibration Factor, Cr | L51: Predicted average crash frequency, N predicted rs (crashes/year)
C52: from Equation 10-6 | D52: from Equation 10-7 | F52: from Table 10-3 (proportion) | H52: (2)TOTAL x (4) | J52: (13) from Worksheet 1B | L52: (5)x(6)x(7)
A53: Total | C53: =+G10*G9*365*0.000001*EXP(-0.312) -> 0.000 | D53: =0.236/G9 ->  | F53: =+'Segment Tables'!E15/100 -> 1.000 | H53: =+C53*F53 -> 0.000 | J53: =+M45 ->  | K53: =+$G$26 -> 1.00 | L53: =+H53*J53*K53 -> 
A54: Fatal and Injury (FI) | C54: -- | D54: -- | F54: =+IF('Segment Tables'!$D$8="No",('Segment Tables'!$E$13/100),('Segment Tables'!$H$13/100)) -> 0.321 | H54: =+C53*F54 -> 0.000 | J54: =+M45 ->  | K54: =+$G$26 -> 1.00 | L54: =+H54*J54*K54 -> 
A55: Property Damage Only (PDO) | C55: -- | D55: -- | F55: =+IF('Segment Tables'!$D$8="No",('Segment Tables'!$E$14/100),('Segment Tables'!$H$14/100)) -> 0.679 | H55: =+C53*F55 -> 0.000 | J55: =+M45 ->  | K55: =+$G$26 -> 1.00 | L55: =+H55*J55*K55 -> 
A59: Worksheet 1D -- Crashes by Severity Level and Collision Type for Rural Two-Lane Two-Way Roadway Segments
A60: (1) | C60: (2) | D60: (3) | F60: (4) | H60: (5) | J60: (6) | L60: (7)
A61: Collision Type | C61: Proportion of Collision Type(TOTAL) | D61: N predicted rs (TOTAL) (crashes/year) | F61: Proportion of Collision Type(FI) | H61: N predicted rs (FI) (crashes/year) | J61: Proportion of Collision Type(PDO) | L61: N predicted rs (PDO) (crashes/year)
C62: from Table 10-4 | D62: (8)TOTAL from Worksheet 1C | F62: from Table 10-4 | H62: (8)FI from Worksheet 1C | J62: from Table 10-4 | L62: (8)PDO from Worksheet 1C
A63: Total | C63: =+C72+C79 -> 1.000 | D63: =+$L$53 ->  | F63: =+F72+F79 -> 1.000 | H63: =+$L$54 ->  | J63: 1.000 | L63: =+$L$55 -> 
D64: (2)x(3)TOTAL | H64: (4)x(5)FI | L64: (6)x(7)PDO
A65: SINGLE-VEHICLE
A66: Collision with animal | C66: =IF('Segment Tables'!$D$23="No",('Segment Tables'!$G25/100),('Segment Tables'!$K25/100)) -> 0.121 | D66: =+$L$53*C66 ->  | F66: =IF('Segment Tables'!$D$23="No",'Segment Tables'!$E25/100,'Segment Tables'!$I25/100) -> 0.038 | H66: =+$L$54*F66 ->  | J66: =IF('Segment Tables'!$D$23="No",'Segment Tables'!$F25/100,'Segment Tables'!$J25/100) -> 0.184 | L66: =+$L$55*J66 -> 
A67: Collision with bicycle | C67: =IF('Segment Tables'!$D$23="No",('Segment Tables'!$G26/100),('Segment Tables'!$K26/100)) -> 0.002 | D67: =+$L$53*C67 ->  | F67: =IF('Segment Tables'!$D$23="No",'Segment Tables'!$E26/100,'Segment Tables'!$I26/100) -> 0.004 | H67: =+$L$54*F67 ->  | J67: =IF('Segment Tables'!$D$23="No",'Segment Tables'!$F26/100,'Segment Tables'!$J26/100) -> 0.001 | L67: =+$L$55*J67 -> 
A68: Collision with pedestrian | C68: =IF('Segment Tables'!$D$23="No",('Segment Tables'!$G27/100),('Segment Tables'!$K27/100)) -> 0.003 | F68: =IF('Segment Tables'!$D$23="No",'Segment Tables'!$E27/100,'Segment Tables'!$I27/100) -> 0.007 | J68: =IF('Segment Tables'!$D$23="No",'Segment Tables'!$F27/100,'Segment Tables'!$J27/100) -> 0.001
A69: Overturned | C69: =IF('Segment Tables'!$D$23="No",('Segment Tables'!$G28/100),('Segment Tables'!$K28/100)) -> 0.025 | F69: =IF('Segment Tables'!$D$23="No",'Segment Tables'!$E28/100,'Segment Tables'!$I28/100) -> 0.037 | J69: =IF('Segment Tables'!$D$23="No",'Segment Tables'!$F28/100,'Segment Tables'!$J28/100) -> 0.015
A70: Ran off road | C70: =IF('Segment Tables'!$D$23="No",('Segment Tables'!$G29/100),('Segment Tables'!$K29/100)) -> 0.521 | F70: =IF('Segment Tables'!$D$23="No",'Segment Tables'!$E29/100,'Segment Tables'!$I29/100) -> 0.545 | J70: =IF('Segment Tables'!$D$23="No",'Segment Tables'!$F29/100,'Segment Tables'!$J29/100) -> 0.505
A71: Other single-vehicle collision | C71: =IF('Segment Tables'!$D$23="No",('Segment Tables'!$G30/100),('Segment Tables'!$K30/100)) -> 0.021 | F71: =IF('Segment Tables'!$D$23="No",'Segment Tables'!$E30/100,'Segment Tables'!$I30/100) -> 0.007 | J71: =IF('Segment Tables'!$D$23="No",'Segment Tables'!$F30/100,'Segment Tables'!$J30/100) -> 0.029
A72: Total single-vehicle crashes | C72: =+SUM(C66:C71) -> 0.693 | F72: =SUM(F66:G71) -> 0.638 | J72: =SUM(J66:K71) -> 0.735
A73: MULTIPLE-VEHICLE
A74: Angle collision | C74: =IF('Segment Tables'!$D$23="No",('Segment Tables'!$G33/100),('Segment Tables'!$K33/100)) -> 0.085 | D74: =+$L$53*C74 ->  | F74: =IF('Segment Tables'!$D$23="No",'Segment Tables'!$E33/100,'Segment Tables'!$I33/100) -> 0.100 | H74: =+$L$54*F74 ->  | J74: =IF('Segment Tables'!$D$23="No",'Segment Tables'!$F33/100,'Segment Tables'!$J33/100) -> 0.072 | L74: =+$L$55*J74 -> 
A75: Head-on collision | C75: =IF('Segment Tables'!$D$23="No",('Segment Tables'!$G34/100),('Segment Tables'!$K34/100)) -> 0.016 | F75: =IF('Segment Tables'!$D$23="No",'Segment Tables'!$E34/100,'Segment Tables'!$I34/100) -> 0.034 | J75: =IF('Segment Tables'!$D$23="No",'Segment Tables'!$F34/100,'Segment Tables'!$J34/100) -> 0.003 | L75: =+$L$55*J75 -> 
A76: Rear-end collision | C76: =IF('Segment Tables'!$D$23="No",('Segment Tables'!$G35/100),('Segment Tables'!$K35/100)) -> 0.142 | F76: =IF('Segment Tables'!$D$23="No",'Segment Tables'!$E35/100,'Segment Tables'!$I35/100) -> 0.164 | J76: =IF('Segment Tables'!$D$23="No",'Segment Tables'!$F35/100,'Segment Tables'!$J35/100) -> 0.122 | L76: =+$L$55*J76 -> 
A77: Sideswipe collision | C77: =IF('Segment Tables'!$D$23="No",('Segment Tables'!$G36/100),('Segment Tables'!$K36/100)) -> 0.037 | F77: =IF('Segment Tables'!$D$23="No",'Segment Tables'!$E36/100,'Segment Tables'!$I36/100) -> 0.038 | J77: =IF('Segment Tables'!$D$23="No",'Segment Tables'!$F36/100,'Segment Tables'!$J36/100) -> 0.038 | L77: =+$L$55*J77 -> 
A78: Other multiple-vehicle collision | C78: =IF('Segment Tables'!$D$23="No",('Segment Tables'!$G37/100),('Segment Tables'!$K37/100)) -> 0.027 | F78: =IF('Segment Tables'!$D$23="No",'Segment Tables'!$E37/100,'Segment Tables'!$I37/100) -> 0.026 | J78: =IF('Segment Tables'!$D$23="No",'Segment Tables'!$F37/100,'Segment Tables'!$J37/100) -> 0.030 | L78: =+$L$55*J78 -> 
A79: Total multiple-vehicle crashes | C79: =SUM(C74:C78) -> 0.307 | F79: =SUM(F74:F78) -> 0.362 | J79: =SUM(J74:J78) -> 0.265 | L79: =SUM(L74:L78) -> 
A83: Worksheet 1E -- Summary Results for Rural Two-Lane Two-Way Roadway Segments
A84: (1) | D84: (2) | G84: (3) | J84: (4) | L84: (5)
A85: Crash severity level | D85: Crash Severity Distribution (proportion) | G85: Predicted average crash frequency (crashes/year) | J85: Roadway segment length (mi) | L85: Crash rate (crashes/mi/year)
D86: (4) from Worksheet 1C | G86: (8) from Worksheet 1C | L86: (3)/(4)
A87: Total | D87: =+F53 -> 1.000 | G87: =+L53 ->  | J87: =+$G$9 -> 0 | L87: =+G87/J87 -> 
A88: Fatal and Injury (FI) | D88: =+F54 -> 0.321 | G88: =+L54 ->  | J88: =+$G$9 -> 0 | L88: =+G88/J88 -> 
A89: Property Damage Only (PDO) | D89: =+F55 -> 0.679 | G89: =+L55 ->  | J89: =+$G$9 -> 0 | L89: =+G89/J89 -> 
B94: PROJECT ELEMENT RESULTS SUMMARY1
B96: Summary for the project element | C96: Total Crashes/yr | F96: Fatal and Injury Crashes/yr | I96: Property Damage Only Crashes/yr
C97: (KABCO) | F97: (KABC) | I97: (PDO)
C98: Predicted average crash frequency | D98: Expected average crash frequency | E98: Potential for Improvement | F98: Predicted average crash frequency | G98: Expected average crash frequency | H98: Potential for Improvement | I98: Predicted average crash frequency | J98: Expected average crash frequency | K98: Potential for Improvement
C99: Npredicted (KABCO) | D99: Nexpected (KABCO) | F99: Npredicted (KABC) | G99: Nexpected (KABC) | I99: Npredicted (O) | J99: Nexpected (O)
C100: =ROUND(G87,1) ->  | D100: =IF('Project Information'!$F$11="Predicted & Expected",ROUND(SUMIF('Rural 2-Lane Site Total'!$B$12:$C$37,$C$7,'Rural 2-Lane Site Total'!$L$12:$L$37),1),0) -> 0.0 | E100: =IF('Project Information'!$F$11="Predicted & Expected",IF(D100>C100,ROUND(D100-C100,1),0),0) -> 0.0 | F100: =ROUND(G88,1) ->  | G100: =IF('Project Information'!$F$11="Predicted & Expected",+ROUND((+D100*F100/C100),1),0) -> 0.0 | H100: =IF('Project Information'!$F$11="Predicted & Expected",IF(G100>F100,ROUND(G100-F100,1),0),0) -> 0.0 | I100: =ROUND(G89,1) ->  | J100: =IF('Project Information'!$F$11="Predicted & Expected",+ROUND((+D100*I100/C100),1),0) -> 0.0 | K100: =IF('Project Information'!$F$11="Predicted & Expected",IF(J100>I100,ROUND(J100-I100,1),0),0) -> 0.0
B101: Special Note: When the project element is not included in the analysis the results will all be zeros. In addition if only the analysis only includes determining the predicted average crash frequency (i.e. EB analysis is not carried out), the results will show zero values where EB results are usually displayed.
B102: 1 The values in this table are rounded values. For unrounded values, refer to Workdheet 1L.

Sheet Intersection Template (hidden)
A1: Worksheet 2A -- General Information and Input Data for Rural Two-Lane Two-Way Roadway Intersections | U1: User Work Space
A3: General Information | G3: Location Information
A4: Analyst | C4: ='Project Information'!$B$6 -> John Smith | G4: Roadway | J4: =VLOOKUP($C$7,'Project Information'!$A$17:$H$103,2,FALSE) -> 
A5: Agency or Company | C5: ='Project Information'!$B$7 -> ABC Company | G5: Intersection | J5: =VLOOKUP($C$7,'Project Information'!$A$17:$H$103,3,FALSE) -> 
A6: Date Performed | C6: ='Project Information'!$F$5 -> 2011-05-12 | G6: Jurisdiction | J6: =VLOOKUP($C$7,'Project Information'!$A$17:$H$103,4,FALSE) -> 
A7: Intersection | C7: Intersection 1 | G7: Analysis Year | J7: ='Project Information'!$F$6 -> 2011
A8: Signalized/Unsignalized | C8: =VLOOKUP($C$7,'Project Information'!$A$17:$H$103,6,FALSE) -> 
A9: Input Data | G9: Site Conditions | K9: Base Conditions
A10: Intersection type (3ST, 4ST, 4SG) | K10: -- | O10: =IF($G$10="3ST","Unsignalized three-leg (stop control on minor-road approaches)",IF($G$10="4ST","Unsignalized four-leg (stop control on minor-road approaches)","Signalized four-leg")) -> Signalized four-leg
A11: AADTmajor (veh/day) | D11: AADTMAX = | E11: =IF($G$10="3ST",19500,IF($G$10="4ST",14700,25200)) -> 25,200 | F11: (veh/day) | K11: -- | N11: =IF(G11>E11,"AADT out of range","AADT OK") -> AADT OK
A12: AADTminor (veh/day) | D12: AADTMAX = | E12: =IF($G$10="3ST",4300,IF($G$10="4ST",3500,12500)) -> 12,500 | F12: (veh/day) | K12: -- | N12: =IF(G12>E12,"AADT out of range","AADT OK") -> AADT OK
A13: Intersection skew angle (degrees) | C13: [If 4ST, does skew differ for minor legs? Else, No.] | G13: Skew for Leg 1 (All): | H13: 0 | I13: Skew for Leg 2 (4ST only): | J13: 0 | K13: 0 | O13: Skew Intersection:
A14: Number of signalized or uncontrolled approaches with a left-turn lane (0, 1, 2, 3, 4) | K14: 0
A15: Number of signalized or uncontrolled approaches with a right-turn lane (0, 1, 2, 3, 4) | K15: 0
A16: Intersection lighting (present/not present) | G16: Not Present | K16: Not Present
A17: Calibration Factor, Ci | G17: 1.00 | K17: 1.00
A18: Average Annual Crash History (3 or 5-yr average) | N18: If inputs are complete, click for next element
A19: Intersection crashes | G19: KABC | H19: Fatal and Injury Only | J19: 0.0
G20: PDO | H20: Property Damage Only | J20: 0.0
A21: NOTES: * AADT: It is important to remember that the AADT(major) = AADT(major approach1) + AADT(minor approach2) (refer to p.10-6 in Part C of the HSM)
A24: Worksheet 2B -- Crash Modification Factors for Rural Two-Lane Two-Way Roadway Intersections
A25: (1) | D25: (2) | F25: (3) | I25: (4) | L25: (5)
A26: CMF for Intersection Skew Angle | D26: CMF for Left-Turn Lanes | F26: CMF for Right-Turn Lanes | I26: CMF for Lighting | L26: Combined CMF
A27: CMF 1i | D27: CMF 2i | F27: CMF 3i | I27: CMF 4i | L27: CMF COMB
A28: from Equations 10-22 or 10-23 | D28: from Table 10-13 | F28: from Table 10-14 | I28: from Equation 10-24 | L28: (1)*(2)*(3)*(4)
A29: =IF(+$G$10="3ST",(EXP(0.004*$H$13)),(IF(+$G$10="4ST",(IF($F$13="No",(EXP(0.0054*$H$13)),(((EXP(0.0054*$H$13))+(EXP(0.0054*$J$13)))/2))),1))) -> 1.00 | D29: =IF($G$10="3ST",(IF($G$14=0,1,(HLOOKUP($G$14,'Intersection Tables'!$AC$9:$AF$15,3,FALSE)))),(IF($G$10="4ST",(IF($G$14=0,1,(HLOOKUP($G$14,'Intersection Tables'!$AC$9:$AF$15,5,FALSE)))),(IF($G$14=0,1,(HLOOKUP($G$14,'Intersection Tables'!$AC$9:$AF$15,7,FALSE))))))) -> 1.00 | F29: =IF($G$10="3ST",(IF($G$15=0,1,(HLOOKUP($G$15,'Intersection Tables'!$AC$25:$AF$31,3,FALSE)))),(IF($G$10="4ST",(IF($G$15=0,1,(HLOOKUP($G$15,'Intersection Tables'!$AC$25:$AF$31,5,FALSE)))),(IF($G$15=0,1,(HLOOKUP($G$15,'Intersection Tables'!$AC$25:$AF$31,7,FALSE))))))) -> 1.00 | I29: =IF(($G$16="Not Present"),1,(1-0.38*(IF('Intersection Tables'!$D$49="No",(VLOOKUP( $G$10,'Intersection Tables'!$B$50:$F$52,4,FALSE)),(VLOOKUP($G$10,'Intersection Tables'!B50:H52,6,FALSE)))))) -> 1.00 | L29: =+A29*D29*F29*I29 -> 1.00 | AV29: Base AADT
A32: Worksheet 2C -- Intersection Crashes for Rural Two-Lane Two-Way Roadway Intersections
A33: (1) | C33: (2) | E33: (3) | F33: (4) | G33: (5) | I33: (6) | J33: (7) | L33: (8)
A34: Crash Severity Level | C34: N spf 3ST, 4ST or 4SG | E34: Overdispersion Parameter, k | F34: Crash Severity Distribution | G34: N spf 3ST, 4ST or 4SG by Severity Distribution | I34: Combined CMFs | J34: Calibration Factor, Ci | L34: Predicted average crash frequency, N predicted int
C36: from Equations 10-8, 10-9, or 10-10 | E36: from Section 10.6.2 | F36: from Table 10-5 | G36: (2)TOTAL * (4) | I36: from (5) of Worksheet 2B | L36: (5)*(6)*(7) | Q36: 3ST | R36: 0
Q37: 4ST | R37: 1
A38: Total | C38: =IF($G$10="3ST",(EXP(-9.86+0.79*(LN($G$11))+(0.49*(LN($G$12))))),IF($G$10="4ST",(EXP(-8.56+0.6*(LN($G$11))+(0.61*(LN($G$12))))),(EXP(-5.13+(0.6*(LN($G$11)))+(0.2*(LN($G$12))))))) ->  | E38: =IF($G$10="3ST",0.54,(IF($G$10="4ST",0.24,0.11))) -> 0.11 | F38: =IF($G$10="3ST",IF('Intersection Tables'!$D$10="No",'Intersection Tables'!$E$18,'Intersection Tables'!$K$18),(IF($G$10="4ST",(IF('Intersection Tables'!$D$10="No",'Intersection Tables'!$G$18,'Intersection Tables'!$M$18)),(IF('Intersection Tables'!$D$10="No",'Intersection Tables'!$I$18,'Intersection Tables'!$O$18)))))/100 -> 1.000 | G38: =+C38*F38 ->  | I38: =+$L$29 -> 1.00 | J38: =+$G$17 -> 1.00 | L38: =+G38*I38*J38 ->  | Q38: 4SG | R38: 2
A39: Fatal and Injury (FI) | C39: -- | E39: -- | F39: =IF($G$10="3ST",IF('Intersection Tables'!$D$10="No",'Intersection Tables'!$E$16,'Intersection Tables'!$K$16),(IF($G$10="4ST",(IF('Intersection Tables'!$D$10="No",'Intersection Tables'!$G$16,'Intersection Tables'!$M$16)),(IF('Intersection Tables'!$D$10="No",'Intersection Tables'!$I$16,'Intersection Tables'!$O$16)))))/100 -> 0.340 | G39: =+C38*F39 ->  | I39: =+$L$29 -> 1.00 | J39: =+$G$17 -> 1.00 | L39: =+G39*I39*J39 ->  | R39: 3
A40: Property Damage Only (PDO) | C40: -- | E40: -- | F40: =IF($G$10="3ST",IF('Intersection Tables'!$D$10="No",'Intersection Tables'!$E$17,'Intersection Tables'!$K$17),(IF($G$10="4ST",(IF('Intersection Tables'!$D$10="No",'Intersection Tables'!$G$17,'Intersection Tables'!$M$17)),(IF('Intersection Tables'!$D$10="No",'Intersection Tables'!$I$17,'Intersection Tables'!$O$17)))))/100 -> 0.660 | G40: =+C38*F40 ->  | I40: =+$L$29 -> 1.00 | J40: =+$G$17 -> 1.00 | L40: =+G40*I40*J40 ->  | R40: 4
Q42: Yes
A43: Worksheet 2D -- Crashes by Severity Level and Collision Type for Rural Two-Lane Two-Way Road Intersections | Q43: No
A44: (1) | C44: (2) | D44: (3) | F44: (4) | H44: (5) | J44: (6) | L44: (7)
A45: Collision Type | C45: Proportion of Collision Type(TOTAL) | D45: N predicted int (TOTAL) (crashes/year) | F45: Proportion of Collision Type(FI) | H45: N predicted int (FI) (crashes/year) | J45: Proportion of Collision Type(PDO) | L45: N predicted int (PDO) (crashes/year)
C48: from Table 10-6 | D48: (8)TOTAL from Worksheet 2C | F48: from Table 10-6 | H48: (8)FI from Worksheet 2C | J48: from Table 10-6 | L48: (8)PDO from Worksheet 2C
A50: Total | C50: =IF('Intersection Tables'!$D$27="No",(IF($G$10="3ST",'Intersection Tables'!G43,(IF($G$10="4ST",'Intersection Tables'!J43,'Intersection Tables'!M43)))/100),(IF($G$10="3ST",'Intersection Tables'!P43,(IF($G$10="4ST",+'Intersection Tables'!S43,+'Intersection Tables'!V43)))/100)) -> 1.000 | D50: =+L38 ->  | F50: =IF('Intersection Tables'!$D$27="No",(IF($G$10="3ST",'Intersection Tables'!E43,(IF($G$10="4ST",'Intersection Tables'!H43,'Intersection Tables'!K43)))/100),(IF($G$10="3ST",'Intersection Tables'!N43,(IF($G$10="4ST",+'Intersection Tables'!Q43,+'Intersection Tables'!T43)))/100)) -> 1.000 | H50: =+L39 ->  | J50: =IF('Intersection Tables'!$D$27="No",(IF($G$10="3ST",'Intersection Tables'!F43,(IF($G$10="4ST",'Intersection Tables'!I43,'Intersection Tables'!L43)))/100),(IF($G$10="3ST",'Intersection Tables'!O43,(IF($G$10="4ST",+'Intersection Tables'!R43,+'Intersection Tables'!U43)))/100)) -> 1.000 | L50: =+L40 -> 
D51: (2)x(3)TOTAL | H51: (4)x(5)FI | L51: (6)x(7)PDO
A52: SINGLE-VEHICLE
A53: Collision with animal | C53: =IF('Intersection Tables'!$D$27="No",(IF($G$10="3ST",'Intersection Tables'!G29,(IF($G$10="4ST",'Intersection Tables'!J29,'Intersection Tables'!M29)))/100),(IF($G$10="3ST",'Intersection Tables'!P29,(IF($G$10="4ST",+'Intersection Tables'!S29,+'Intersection Tables'!V29)))/100)) -> 0.002 | D53: =+C53*$D$50 ->  | F53: =IF('Intersection Tables'!$D$27="No",(IF($G$10="3ST",'Intersection Tables'!E29,(IF($G$10="4ST",'Intersection Tables'!H29,'Intersection Tables'!K29)))/100),(IF($G$10="3ST",'Intersection Tables'!N29,(IF($G$10="4ST",+'Intersection Tables'!Q29,+'Intersection Tables'!T29)))/100)) -> 0.000 | H53: =+$H$50*F53 ->  | J53: =IF('Intersection Tables'!$D$27="No",(IF($G$10="3ST",'Intersection Tables'!F29,(IF($G$10="4ST",'Intersection Tables'!I29,'Intersection Tables'!L29)))/100),(IF($G$10="3ST",'Intersection Tables'!O29,(IF($G$10="4ST",+'Intersection Tables'!R29,+'Intersection Tables'!U29)))/100)) -> 0.003 | L53: =+$L$50*J53 -> 
A54: Collision with bicycle | C54: =IF('Intersection Tables'!$D$27="No",(IF($G$10="3ST",'Intersection Tables'!G30,(IF($G$10="4ST",'Intersection Tables'!J30,'Intersection Tables'!M30)))/100),(IF($G$10="3ST",'Intersection Tables'!P30,(IF($G$10="4ST",+'Intersection Tables'!S30,+'Intersection Tables'!V30)))/100)) -> 0.001 | D54: =+C54*$D$50 ->  | F54: =IF('Intersection Tables'!$D$27="No",(IF($G$10="3ST",'Intersection Tables'!E30,(IF($G$10="4ST",'Intersection Tables'!H30,'Intersection Tables'!K30)))/100),(IF($G$10="3ST",'Intersection Tables'!N30,(IF($G$10="4ST",+'Intersection Tables'!Q30,+'Intersection Tables'!T30)))/100)) -> 0.001 | H54: =+$H$50*F54 ->  | J54: =IF('Intersection Tables'!$D$27="No",(IF($G$10="3ST",'Intersection Tables'!F30,(IF($G$10="4ST",'Intersection Tables'!I30,'Intersection Tables'!L30)))/100),(IF($G$10="3ST",'Intersection Tables'!O30,(IF($G$10="4ST",+'Intersection Tables'!R30,+'Intersection Tables'!U30)))/100)) -> 0.001 | L54: =+$L$50*J54 -> 
A55: Collision with pedestrian | C55: =IF('Intersection Tables'!$D$27="No",(IF($G$10="3ST",'Intersection Tables'!G31,(IF($G$10="4ST",'Intersection Tables'!J31,'Intersection Tables'!M31)))/100),(IF($G$10="3ST",'Intersection Tables'!P31,(IF($G$10="4ST",+'Intersection Tables'!S31,+'Intersection Tables'!V31)))/100)) -> 0.001 | F55: =IF('Intersection Tables'!$D$27="No",(IF($G$10="3ST",'Intersection Tables'!E31,(IF($G$10="4ST",'Intersection Tables'!H31,'Intersection Tables'!K31)))/100),(IF($G$10="3ST",'Intersection Tables'!N31,(IF($G$10="4ST",+'Intersection Tables'!Q31,+'Intersection Tables'!T31)))/100)) -> 0.001 | J55: =IF('Intersection Tables'!$D$27="No",(IF($G$10="3ST",'Intersection Tables'!F31,(IF($G$10="4ST",'Intersection Tables'!I31,'Intersection Tables'!L31)))/100),(IF($G$10="3ST",'Intersection Tables'!O31,(IF($G$10="4ST",+'Intersection Tables'!R31,+'Intersection Tables'!U31)))/100)) -> 0.001
A56: Overturned | C56: =IF('Intersection Tables'!$D$27="No",(IF($G$10="3ST",'Intersection Tables'!G32,(IF($G$10="4ST",'Intersection Tables'!J32,'Intersection Tables'!M32)))/100),(IF($G$10="3ST",'Intersection Tables'!P32,(IF($G$10="4ST",+'Intersection Tables'!S32,+'Intersection Tables'!V32)))/100)) -> 0.003 | F56: =IF('Intersection Tables'!$D$27="No",(IF($G$10="3ST",'Intersection Tables'!E32,(IF($G$10="4ST",'Intersection Tables'!H32,'Intersection Tables'!K32)))/100),(IF($G$10="3ST",'Intersection Tables'!N32,(IF($G$10="4ST",+'Intersection Tables'!Q32,+'Intersection Tables'!T32)))/100)) -> 0.003 | J56: =IF('Intersection Tables'!$D$27="No",(IF($G$10="3ST",'Intersection Tables'!F32,(IF($G$10="4ST",'Intersection Tables'!I32,'Intersection Tables'!L32)))/100),(IF($G$10="3ST",'Intersection Tables'!O32,(IF($G$10="4ST",+'Intersection Tables'!R32,+'Intersection Tables'!U32)))/100)) -> 0.003
A57: Ran off road | C57: =IF('Intersection Tables'!$D$27="No",(IF($G$10="3ST",'Intersection Tables'!G33,(IF($G$10="4ST",'Intersection Tables'!J33,'Intersection Tables'!M33)))/100),(IF($G$10="3ST",'Intersection Tables'!P33,(IF($G$10="4ST",+'Intersection Tables'!S33,+'Intersection Tables'!V33)))/100)) -> 0.064 | F57: =IF('Intersection Tables'!$D$27="No",(IF($G$10="3ST",'Intersection Tables'!E33,(IF($G$10="4ST",'Intersection Tables'!H33,'Intersection Tables'!K33)))/100),(IF($G$10="3ST",'Intersection Tables'!N33,(IF($G$10="4ST",+'Intersection Tables'!Q33,+'Intersection Tables'!T33)))/100)) -> 0.032 | J57: =IF('Intersection Tables'!$D$27="No",(IF($G$10="3ST",'Intersection Tables'!F33,(IF($G$10="4ST",'Intersection Tables'!I33,'Intersection Tables'!L33)))/100),(IF($G$10="3ST",'Intersection Tables'!O33,(IF($G$10="4ST",+'Intersection Tables'!R33,+'Intersection Tables'!U33)))/100)) -> 0.081
A58: Other single-vehicle collision | C58: =IF('Intersection Tables'!$D$27="No",(IF($G$10="3ST",'Intersection Tables'!G34,(IF($G$10="4ST",'Intersection Tables'!J34,'Intersection Tables'!M34)))/100),(IF($G$10="3ST",'Intersection Tables'!P34,(IF($G$10="4ST",+'Intersection Tables'!S34,+'Intersection Tables'!V34)))/100)) -> 0.005 | F58: =IF('Intersection Tables'!$D$27="No",(IF($G$10="3ST",'Intersection Tables'!E34,(IF($G$10="4ST",'Intersection Tables'!H34,'Intersection Tables'!K34)))/100),(IF($G$10="3ST",'Intersection Tables'!N34,(IF($G$10="4ST",+'Intersection Tables'!Q34,+'Intersection Tables'!T34)))/100)) -> 0.003 | J58: =IF('Intersection Tables'!$D$27="No",(IF($G$10="3ST",'Intersection Tables'!F34,(IF($G$10="4ST",'Intersection Tables'!I34,'Intersection Tables'!L34)))/100),(IF($G$10="3ST",'Intersection Tables'!O34,(IF($G$10="4ST",+'Intersection Tables'!R34,+'Intersection Tables'!U34)))/100)) -> 0.018
A59: Total single-vehicle crashes | C59: =IF('Intersection Tables'!$D$27="No",(IF($G$10="3ST",'Intersection Tables'!G35,(IF($G$10="4ST",'Intersection Tables'!J35,'Intersection Tables'!M35)))/100),(IF($G$10="3ST",'Intersection Tables'!P35,(IF($G$10="4ST",+'Intersection Tables'!S35,+'Intersection Tables'!V35)))/100)) -> 0.076 | F59: =IF('Intersection Tables'!$D$27="No",(IF($G$10="3ST",'Intersection Tables'!E35,(IF($G$10="4ST",'Intersection Tables'!H35,'Intersection Tables'!K35)))/100),(IF($G$10="3ST",'Intersection Tables'!N35,(IF($G$10="4ST",+'Intersection Tables'!Q35,+'Intersection Tables'!T35)))/100)) -> 0.040 | J59: =IF('Intersection Tables'!$D$27="No",(IF($G$10="3ST",'Intersection Tables'!F35,(IF($G$10="4ST",'Intersection Tables'!I35,'Intersection Tables'!L35)))/100),(IF($G$10="3ST",'Intersection Tables'!O35,(IF($G$10="4ST",+'Intersection Tables'!R35,+'Intersection Tables'!U35)))/100)) -> 0.107
A60: MULTIPLE-VEHICLE
A61: Angle collision | C61: =IF('Intersection Tables'!$D$27="No",(IF($G$10="3ST",'Intersection Tables'!G37,(IF($G$10="4ST",'Intersection Tables'!J37,'Intersection Tables'!M37)))/100),(IF($G$10="3ST",'Intersection Tables'!P37,(IF($G$10="4ST",+'Intersection Tables'!S37,+'Intersection Tables'!V37)))/100)) -> 0.274 | D61: =+C61*$D$50 ->  | F61: =IF('Intersection Tables'!$D$27="No",(IF($G$10="3ST",'Intersection Tables'!E37,(IF($G$10="4ST",'Intersection Tables'!H37,'Intersection Tables'!K37)))/100),(IF($G$10="3ST",'Intersection Tables'!N37,(IF($G$10="4ST",+'Intersection Tables'!Q37,+'Intersection Tables'!T37)))/100)) -> 0.336 | H61: =+$H$50*F61 ->  | J61: =IF('Intersection Tables'!$D$27="No",(IF($G$10="3ST",'Intersection Tables'!F37,(IF($G$10="4ST",'Intersection Tables'!I37,'Intersection Tables'!L37)))/100),(IF($G$10="3ST",'Intersection Tables'!O37,(IF($G$10="4ST",+'Intersection Tables'!R37,+'Intersection Tables'!U37)))/100)) -> 0.242 | L61: =+$L$50*J61 -> 
A62: Head-on collision | C62: =IF('Intersection Tables'!$D$27="No",(IF($G$10="3ST",'Intersection Tables'!G38,(IF($G$10="4ST",'Intersection Tables'!J38,'Intersection Tables'!M38)))/100),(IF($G$10="3ST",'Intersection Tables'!P38,(IF($G$10="4ST",+'Intersection Tables'!S38,+'Intersection Tables'!V38)))/100)) -> 0.054 | F62: =IF('Intersection Tables'!$D$27="No",(IF($G$10="3ST",'Intersection Tables'!E38,(IF($G$10="4ST",'Intersection Tables'!H38,'Intersection Tables'!K38)))/100),(IF($G$10="3ST",'Intersection Tables'!N38,(IF($G$10="4ST",+'Intersection Tables'!Q38,+'Intersection Tables'!T38)))/100)) -> 0.080 | J62: =IF('Intersection Tables'!$D$27="No",(IF($G$10="3ST",'Intersection Tables'!F38,(IF($G$10="4ST",'Intersection Tables'!I38,'Intersection Tables'!L38)))/100),(IF($G$10="3ST",'Intersection Tables'!O38,(IF($G$10="4ST",+'Intersection Tables'!R38,+'Intersection Tables'!U38)))/100)) -> 0.040
A63: Rear-end collision | C63: =IF('Intersection Tables'!$D$27="No",(IF($G$10="3ST",'Intersection Tables'!G39,(IF($G$10="4ST",'Intersection Tables'!J39,'Intersection Tables'!M39)))/100),(IF($G$10="3ST",'Intersection Tables'!P39,(IF($G$10="4ST",+'Intersection Tables'!S39,+'Intersection Tables'!V39)))/100)) -> 0.426 | F63: =IF('Intersection Tables'!$D$27="No",(IF($G$10="3ST",'Intersection Tables'!E39,(IF($G$10="4ST",'Intersection Tables'!H39,'Intersection Tables'!K39)))/100),(IF($G$10="3ST",'Intersection Tables'!N39,(IF($G$10="4ST",+'Intersection Tables'!Q39,+'Intersection Tables'!T39)))/100)) -> 0.403 | J63: =IF('Intersection Tables'!$D$27="No",(IF($G$10="3ST",'Intersection Tables'!F39,(IF($G$10="4ST",'Intersection Tables'!I39,'Intersection Tables'!L39)))/100),(IF($G$10="3ST",'Intersection Tables'!O39,(IF($G$10="4ST",+'Intersection Tables'!R39,+'Intersection Tables'!U39)))/100)) -> 0.438
A64: Sideswipe collision | C64: =IF('Intersection Tables'!$D$27="No",(IF($G$10="3ST",'Intersection Tables'!G40,(IF($G$10="4ST",'Intersection Tables'!J40,'Intersection Tables'!M40)))/100),(IF($G$10="3ST",'Intersection Tables'!P40,(IF($G$10="4ST",+'Intersection Tables'!S40,+'Intersection Tables'!V40)))/100)) -> 0.118 | F64: =IF('Intersection Tables'!$D$27="No",(IF($G$10="3ST",'Intersection Tables'!E40,(IF($G$10="4ST",'Intersection Tables'!H40,'Intersection Tables'!K40)))/100),(IF($G$10="3ST",'Intersection Tables'!N40,(IF($G$10="4ST",+'Intersection Tables'!Q40,+'Intersection Tables'!T40)))/100)) -> 0.051 | J64: =IF('Intersection Tables'!$D$27="No",(IF($G$10="3ST",'Intersection Tables'!F40,(IF($G$10="4ST",'Intersection Tables'!I40,'Intersection Tables'!L40)))/100),(IF($G$10="3ST",'Intersection Tables'!O40,(IF($G$10="4ST",+'Intersection Tables'!R40,+'Intersection Tables'!U40)))/100)) -> 0.153
A65: Other multiple-vehicle collision | C65: =IF('Intersection Tables'!$D$27="No",(IF($G$10="3ST",'Intersection Tables'!G41,(IF($G$10="4ST",'Intersection Tables'!J41,'Intersection Tables'!M41)))/100),(IF($G$10="3ST",'Intersection Tables'!P41,(IF($G$10="4ST",+'Intersection Tables'!S41,+'Intersection Tables'!V41)))/100)) -> 0.052 | F65: =IF('Intersection Tables'!$D$27="No",(IF($G$10="3ST",'Intersection Tables'!E41,(IF($G$10="4ST",'Intersection Tables'!H41,'Intersection Tables'!K41)))/100),(IF($G$10="3ST",'Intersection Tables'!N41,(IF($G$10="4ST",+'Intersection Tables'!Q41,+'Intersection Tables'!T41)))/100)) -> 0.090 | J65: =IF('Intersection Tables'!$D$27="No",(IF($G$10="3ST",'Intersection Tables'!F41,(IF($G$10="4ST",'Intersection Tables'!I41,'Intersection Tables'!L41)))/100),(IF($G$10="3ST",'Intersection Tables'!O41,(IF($G$10="4ST",+'Intersection Tables'!R41,+'Intersection Tables'!U41)))/100)) -> 0.020
A66: Total multiple-vehicle crashes | C66: =IF('Intersection Tables'!$D$27="No",(IF($G$10="3ST",'Intersection Tables'!G42,(IF($G$10="4ST",'Intersection Tables'!J42,'Intersection Tables'!M42)))/100),(IF($G$10="3ST",'Intersection Tables'!P42,(IF($G$10="4ST",+'Intersection Tables'!S42,+'Intersection Tables'!V42)))/100)) -> 0.924 | F66: =IF('Intersection Tables'!$D$27="No",(IF($G$10="3ST",'Intersection Tables'!E42,(IF($G$10="4ST",'Intersection Tables'!H42,'Intersection Tables'!K42)))/100),(IF($G$10="3ST",'Intersection Tables'!N42,(IF($G$10="4ST",+'Intersection Tables'!Q42,+'Intersection Tables'!T42)))/100)) -> 0.960 | J66: =IF('Intersection Tables'!$D$27="No",(IF($G$10="3ST",'Intersection Tables'!F42,(IF($G$10="4ST",'Intersection Tables'!I42,'Intersection Tables'!L42)))/100),(IF($G$10="3ST",'Intersection Tables'!O42,(IF($G$10="4ST",+'Intersection Tables'!R42,+'Intersection Tables'!U42)))/100)) -> 0.893
A69: Worksheet 2E -- Summary Results for Rural Two-Lane Two-Way Road Intersections
A70: (1) | E70: (2) | I70: (3)
A71: Crash severity level | E71: Crash Severity Distribution (proportion) | I71: Predicted average crash frequency (crashes / year)
E72: (4) from Worksheet 2C | I72: (8) from Worksheet 2C
A73: Total | E73: =+F38 -> 1.000 | I73: =+L38 -> 
A74: Fatal and Injury (FI) | E74: =+F39 -> 0.340 | I74: =+L39 -> 
A75: Property Damage Only (PDO) | E75: =+F40 -> 0.660 | I75: =+L40 -> 
C79: PROJECT ELEMENT RESULTS SUMMARY1
C81: Summary for the project element | D81: Total Crashes/yr | G81: Fatal and Injury Crashes/yr | J81: Property Damage Only Crashes/yr
D82: (KABCO) | G82: (KABC) | J82: (PDO)
D83: Predicted average crash frequency | E83: Expected average crash frequency | F83: Potential for Improvement | G83: Predicted average crash frequency | H83: Expected average crash frequency | I83: Potential for Improvement | J83: Predicted average crash frequency | K83: Expected average crash frequency | L83: Potential for Improvement
D84: Npredicted (KABCO) | E84: Nexpected (KABCO) | G84: Npredicted (KABC) | H84: Nexpected (KABC) | J84: Npredicted (O) | K84: Nexpected (O)
D85: =ROUND(I73,1) ->  | E85: =IF('Project Information'!$F$11="Predicted & Expected",ROUND(SUMIF('Rural 2-Lane Site Total'!$B$12:$C$37,$C$7,'Rural 2-Lane Site Total'!$L$12:$L$37),1),0) -> 0.0 | F85: =IF('Project Information'!$F$11="Predicted & Expected",IF(E85>D85,ROUND(E85-D85,1),0),0) -> 0.0 | G85: =ROUND(I74,1) ->  | H85: =IF('Project Information'!$F$11="Predicted & Expected",+ROUND((+E85*G85/D85),1),0) -> 0.0 | I85: =IF('Project Information'!$F$11="Predicted & Expected",IF(H85>G85,ROUND(H85-G85,1),0),0) -> 0.0 | J85: =ROUND(I75,1) ->  | K85: =IF('Project Information'!$F$11="Predicted & Expected",+ROUND((+E85*J85/D85),1),0) -> 0.0 | L85: =IF('Project Information'!$F$11="Predicted & Expected",IF(K85>J85,ROUND(K85-J85,1),0),0) -> 0.0
C86: Special Note: When the project element is not included in the analysis the results will all be zeros. In addition if only the analysis only includes determining the predicted average crash frequency (i.e. EB analysis is not carried out), the results will show zero values where EB results are usually displayed.
C87: 1 The values in this table are rounded values. For unrounded values, refer to Workdheet 1L.

Sheet Segment Tables (hidden)
B2: Tables Affiliated with Crash Statistics: | R2: Tables Affiliated with Crash Modification Factors:
B5: Table 10-3: Distribution for Crash Severity Level on Rural Two-Lane Two-Way Roadway Segments plus Locally-Derived Values | R5: Table 10-10: Crash Modification Factors for Shoulder Types and Shoulder Widths on Roadway Segments (CMFtra)
B7: Crash severity level | E7: Percentage of total roadway segment crashes | R7: Shoulder Type | S7: Shoulder width (ft)
B8: Locally-Derived Values? | D8: No | E8: HSM-Provided Values | H8: Locally-Derived Values (Oregon) | S8: 0 | T8: 1 | U8: 2 | V8: 3 | W8: 4 | X8: 5 | Y8: 6 | Z8: 7 | AA8: 8
B9: Fatal | E9: 1.3 | H9: 3.1 | R9: Paved | S9: 1.00 | T9: 1.00 | U9: 1.00 | V9: 1.00 | W9: 1.00 | X9: =+(W9+Y9)/2 -> 1.00 | Y9: 1.00 | Z9: =+(Y9+AA9)/2 -> 1.00 | AA9: 1.00
B10: Incapacitating Injury | E10: 5.4 | H10: 7.7 | R10: Gravel | S10: 1.00 | T10: 1.00 | U10: 1.01 | V10: 1.01 | W10: 1.01 | X10: =+(W10+Y10)/2 -> 1.02 | Y10: 1.02 | Z10: =+(Y10+AA10)/2 -> 1.02 | AA10: 1.02
B11: Nonincapacitating Injury | E11: 10.9 | H11: 25.2 | R11: Composite | S11: 1.00 | T11: 1.01 | U11: 1.02 | V11: 1.02 | W11: 1.03 | X11: =+(W11+Y11)/2 -> 1.04 | Y11: 1.04 | Z11: =+(Y11+AA11)/2 -> 1.05 | AA11: 1.06
B12: Possible Injury | E12: 14.5 | H12: 18.0 | R12: Turf | S12: 1.00 | T12: 1.01 | U12: 1.03 | V12: 1.04 | W12: 1.05 | X12: =+(W12+Y12)/2 -> 1.07 | Y12: 1.08 | Z12: =+(Y12+AA12)/2 -> 1.10 | AA12: 1.11
B13: Total Fatal Plus Injury | E13: =SUM(E9:E12) -> 32.1 | H13: =SUM(H9:H12) -> 54.0 | R13: Note: The values for composite shoulders in this exhibit represent a shoulder for which 50 percent of the shoulder width is paved and 50 percent of the shoulder width is turf.
B14: Property Damage Only | E14: =100-E13 -> 67.9 | H14: =100-H13 -> 46.0
B15: TOTAL | E15: =SUM(E13:E14) -> 100.0 | H15: =SUM(H13:H14) -> 100.0
B16: Note: HSM-provided crash severity data based on HSIS data for Washington (2002-2006)
B18: Table 10-4: Default Distribution by Collision Type for Specific Crash Severity Levels on Rural Two-Lane Two-Way Roadway Segments plus Locally-Derived Values
E20: Percentage of total roadway segment crashes by crash severity level
E21: HSM-Provided Values | I21: Locally-Derived Values (Oregon)
B22: Collision type | E22: Total fatal and injury | F22: Property damage only | G22: TOTAL (all severity levels combined) | I22: Total fatal and injury | J22: Property damage only | K22: TOTAL (all severity levels combined)
B23: Locally-Derived Values? | D23: No
B24: SINGLE-VEHICLE CRASHES
B25: Collision with animal | E25: 3.8 | F25: 18.4 | G25: 12.1 | I25: 3.1 | J25: 12.0 | K25: 7.2
B26: Collision with bicycle | E26: 0.4 | F26: 0.1 | G26: 0.2 | I26: 0.6 | J26: 0.0 | K26: 0.3
B27: Collision with pedestrian | E27: 0.7 | F27: 0.1 | G27: 0.3 | I27: 0.8 | J27: 0.0 | K27: 0.4
B28: Overturned | E28: 3.7 | F28: 1.5 | G28: 2.5 | I28: 8.6 | J28: 3.8 | K28: 6.4
B29: Ran off road | E29: 54.5 | F29: 50.5 | G29: 52.1 | I29: 47.2 | J29: 39.1 | K29: 43.5
B30: Other single-vehicle crash | E30: 0.7 | F30: 2.9 | G30: 2.1 | I30: 1.7 | J30: 1.3 | K30: 1.5
B31: Total single-vehicle crashes | E31: =SUM(E25:E30) -> 63.8 | F31: =SUM(F25:F30) -> 73.5 | G31: =SUM(G25:H30) -> 69.3 | I31: =SUM(I25:I30) -> 62.0 | J31: =SUM(J25:J30) -> 56.2 | K31: =SUM(K25:L30) -> 59.3
B32: MULTIPLE-VEHICLE CRASHES
B33: Angle collision | E33: 10.0 | F33: 7.2 | G33: 8.5 | I33: 0.8 | J33: 0.7 | K33: 0.8
B34: Head-on collision | E34: 3.4 | F34: 0.3 | G34: 1.6 | I34: 5.8 | J34: 1.0 | K34: 3.6
B35: Rear-end collision | E35: 16.4 | F35: 12.2 | G35: 14.2 | I35: 18.8 | J35: 21.5 | K35: 20.1
B36: Sideswipe collision | E36: 3.8 | F36: 3.8 | G36: 3.7 | I36: 4.4 | J36: 7.1 | K36: 5.6
B37: Other multiple-vehicle collision | E37: 2.6 | F37: 3.0 | G37: 2.7 | I37: 8.2 | J37: 13.5 | K37: 10.6
B38: Total multiple-vehicle crashes | E38: =SUM(E33:E37) -> 36.2 | F38: =SUM(F33:F37) -> 26.5 | G38: =SUM(G33:H37) -> 30.7 | I38: =SUM(I33:I37) -> 38.0 | J38: =SUM(J33:J37) -> 43.8 | K38: =SUM(K33:L37) -> 40.7
B39: TOTAL CRASHES | E39: =+E31+E38 -> 100.0 | F39: =+F31+F38 -> 100.0 | G39: 100.0 | I39: =+I31+I38 -> 100.0 | J39: =+J31+J38 -> 100.0 | K39: 100.0
B40: Note: HSM-provided values based on crash data for Washington (2002-2006); includes approximately 70 percent opposite-direction sideswipe and 30 percent same-direction sideswipe collisions.
B43: Table 10-12: Nighttime Crash Proportions for Unlighted Roadway Segments plus Locally-Derived Values
B44: Roadway Type | C44: HSM Default Values | I44: Locally Derived Values
C45: Locally-Derived Values? | E45: No | F45: Proportion of crashes that occur at night | I45: Proportion of total nighttime crashes by severity level | L45: Proportion of crashes that occur at night
C46: Proportion of total nighttime crashes by severity level
C48: Fatal and Injury pinr | E48: PDO ppnr | F48: pnr | I48: Fatal and Injury pinr | K48: PDO ppnr | L48: pnr
B49: 2U | C49: 0.382 | E49: 0.618 | F49: 0.370 | I49: 0.540 | K49: 0.460 | L49: 0.280
B50: Note: HSM-provided values based on HSIS data for Washington (2002-2006)

Sheet Intersection Tables (hidden)
B2: Tables Affiliated with Crash Statistics: | Y2: Tables Affiliated with Crash Modification Factors:
B5: Table 10-5: Default Distribution for Crash Severity Level at Rural Two-Lane Two-Way Intersections plus Locally-Derived Values | Y5: Table 10-13: CMF for Installation of Left-Turn Lanes on Intersection Approaches (CMF2i)
B7: Collision type | E7: Percentage of total crashes | Y7: Intersection type | AA7: Intersection traffic control | AC7: Number of approaches with left-turn lanes a
E8: HSM-Provided Values | K8: Locally-Derived Values
E9: 3ST | G9: 4ST | I9: 4SG | K9: 3ST | M9: 4ST | O9: 4SG | AC9: 1 | AD9: 2 | AE9: 3 | AF9: 4
B10: Locally-Derived Values? | D10: No
Y11: Three-leg intersection | AA11: Minor road stop control b | AC11: 0.56 | AD11: 0.31 | AE11: 0.31 | AF11: 0.31
B12: Fatal | E12: 1.7 | G12: 1.8 | I12: 0.9 | K12: 4.0 | M12: 17.0
B13: Incapacitating injury | E13: 4.0 | G13: 4.3 | I13: 2.1 | Y13: Four-leg intersection | AA13: Minor road stop control b | AC13: 0.72 | AD13: 0.52 | AE13: 0.52 | AF13: 0.52
B14: Nonincapacitating injury | E14: 16.6 | G14: 16.2 | I14: 10.5
B15: Possible injury | E15: 19.2 | G15: 20.8 | I15: 20.5 | AA15: Traffic signal | AC15: 0.82 | AD15: 0.67 | AE15: 0.55 | AF15: 0.45
B16: Total fatal plus injury | E16: =SUM(E12:E15) -> 41.5 | G16: =SUM(G12:G15) -> 43.1 | I16: =SUM(I12:I15) -> 34.0 | K16: =SUM(K12:K15) -> 4.0 | M16: =SUM(M12:M15) -> 17.0 | O16: =SUM(O12:O15) -> 0.0 | Y16: Note: | Z16: a Stop-controlled approaches are not considered in determing the number of approaches with left-turn lanes
B17: Property damage only | E17: =100-E16 -> 58.5 | G17: =100-G16 -> 56.9 | I17: =100-I16 -> 66.0 | K17: =100-K16 -> 96.0 | M17: =100-M16 -> 83.0 | O17: =100-O16 -> 100.0
B18: TOTAL | E18: =SUM(E16:E17) -> 100.0 | G18: =SUM(G16:G17) -> 100.0 | I18: =SUM(I16:I17) -> 100.0 | K18: =SUM(K16:K17) -> 100.0 | M18: =SUM(M16:M17) -> 100.0 | O18: =SUM(O16:O17) -> 100.0 | Z18: b Stop signs present on minor road approaches only.
B19: Note: HSM-Provided values based on HSIS data for California (2002-2006)
B21: Table 10-6: Default Distribution for Collision Type and Manner of Collision at Rural Two-Way Intersections plus Locally-Derived Values | Y21: Table 10-14: CMF for Installation of Right-Turn Lanes on Intersection Approaches (CMF3i)
B23: Collision type | E23: Percentage of total crashes by collision type ( HSM Default Values) | N23: Percentage of total crashes by collision type (Locally Derived Values) | Y23: Intersection type | AA23: Intersection traffic control | AC23: Number of approaches with left-turn lanes a
E24: Three-leg stop-controlled intersections | H24: Four-leg stop-controlled intersections | K24: Four-leg signalized intersections | N24: Three-leg stop-controlled intersections | Q24: Four-leg stop-controlled intersections | T24: Four-leg signalized intersections
AC25: 1 | AD25: 2 | AE25: 3 | AF25: 4
E26: Fatal and Injury | F26: Property damage only | G26: Total | H26: Fatal and injury | I26: Property damage only | J26: Total | K26: Fatal and injury | L26: Property damage only | M26: Total | N26: Fatal and Injury | O26: Property damage only | P26: Total | Q26: Fatal and injury | R26: Property damage only | S26: Total | T26: Fatal and injury | U26: Property damage only | V26: Total
B27: Locally-Derived Values? | D27: No | Y27: Three-leg intersection | AA27: Minor road stop control b | AC27: 0.86 | AD27: 0.74 | AE27: 0.74 | AF27: 0.74
B28: SINGLE-VEHICLE CRASHES | N28: SINGLE-VEHICLE CRASHES
B29: Collision with animal | E29: 0.8 | F29: 2.6 | G29: 1.9 | H29: 0.6 | I29: 1.4 | J29: 1.0 | K29: 0.0 | L29: 0.3 | M29: 0.2 | P29: 1.0 | S29: 1.0 | V29: 1.0 | Y29: Four-leg intersection | AA29: Minor road stop control b | AC29: 0.86 | AD29: 0.74 | AE29: 0.74 | AF29: 0.74
B30: Collision with bicycle | E30: 0.1 | F30: 0.1 | G30: 0.1 | H30: 0.1 | I30: 0.1 | J30: 0.1 | K30: 0.1 | L30: 0.1 | M30: 0.1 | P30: 0.1 | S30: 0.1 | V30: 0.1
B31: Collision with pedestrian | E31: 0.1 | F31: 0.1 | G31: 0.1 | H31: 0.1 | I31: 0.1 | J31: 0.1 | K31: 0.1 | L31: 0.1 | M31: 0.1 | P31: 0.2 | S31: 0.2 | V31: 0.2 | AA31: Traffic signal | AC31: 0.96 | AD31: 0.92 | AE31: 0.88 | AF31: 0.85
B32: Overturned | E32: 2.2 | F32: 0.7 | G32: 1.3 | H32: 0.6 | I32: 0.4 | J32: 0.5 | K32: 0.3 | L32: 0.3 | M32: 0.3 | P32: 0.3 | S32: 0.3 | V32: 0.3 | Y32: Note: | Z32: a Stop-controlled approaches are not considered in determing the number of approaches with right-turn lanes
B33: Ran off road | E33: 24.0 | F33: 24.7 | G33: 24.4 | H33: 9.4 | I33: 14.4 | J33: 12.2 | K33: 3.2 | L33: 8.1 | M33: 6.4 | P33: 11.0 | S33: 11.0 | V33: 11.0
B34: Other single-vehicle crash | E34: 1.1 | F34: 2.0 | G34: 1.6 | H34: 0.4 | I34: 1.0 | J34: 0.8 | K34: 0.3 | L34: 1.8 | M34: 0.5 | P34: 1.7 | S34: 1.7 | V34: 1.7 | Z34: b Stop signs present on minor road approaches only.
B35: Total single-vehicle crashes | E35: =SUM(E29:E34) -> 28.3 | F35: 30.2 | G35: 29.4 | H35: 11.2 | I35: 17.4 | J35: 14.7 | K35: 4.0 | L35: 10.7 | M35: 7.6 | N35: 0.0 | O35: 0.0 | P35: 14.3 | Q35: 0.0 | R35: 0.0 | S35: 14.3 | T35: 0.0 | U35: 0.0 | V35: 14.3
B36: MULTIPLE-VEHICLE CRASHES | N36: MULTIPLE-VEHICLE CRASHES
B37: Angle collision | E37: 27.5 | F37: 21.0 | G37: 23.7 | H37: 53.2 | I37: 35.4 | J37: 43.1 | K37: 33.6 | L37: 24.2 | M37: 27.4 | P37: 43.0 | S37: 43.0 | V37: 43.0
B38: Head-on collision | E38: 8.1 | F38: 3.2 | G38: 5.2 | H38: 6.0 | I38: 2.5 | J38: 4.0 | K38: 8.0 | L38: 4.0 | M38: 5.4 | P38: 7.7 | S38: 7.7 | V38: 7.7
B39: Rear-end collision | E39: 26.0 | F39: 29.2 | G39: 27.8 | H39: 21.0 | I39: 26.6 | J39: 24.2 | K39: 40.3 | L39: 43.8 | M39: 42.6 | P39: 23.0 | S39: 23.0 | V39: 23.0
B40: Sideswipe collision | E40: 5.1 | F40: 13.1 | G40: 9.7 | H40: 4.4 | I40: 14.4 | J40: 10.1 | K40: 5.1 | L40: 15.3 | M40: 11.8 | P40: 9.0 | S40: 9.0 | V40: 9.0
B41: Other multiple-vehicle collision | E41: 5.0 | F41: 3.3 | G41: 4.2 | H41: 4.2 | I41: 3.7 | J41: 3.9 | K41: 9.0 | L41: 2.0 | M41: 5.2 | P41: 3.0 | S41: 3.0 | V41: 3.0
B42: Total multiple-vehicle crashes | E42: =SUM(E37:E41) -> 71.7 | F42: 69.8 | G42: 70.6 | H42: 88.8 | I42: 82.6 | J42: 85.3 | K42: 96.0 | L42: 89.3 | M42: 92.4 | N42: 0.0 | O42: 0.0 | P42: 85.7 | Q42: 0.0 | R42: 0.0 | S42: 85.7 | T42: 0.0 | U42: 0.0 | V42: 85.7
B43: TOTAL CRASHES | E43: =+E35+E42 -> 100.0 | F43: 100.0 | G43: 100.0 | H43: 100.0 | I43: 100.0 | J43: 100.0 | K43: 100.0 | L43: 100.0 | M43: 100.0 | N43: 0.0 | O43: 0.0 | P43: 100.0 | Q43: 0.0 | R43: 0.0 | S43: 100.0 | T43: 0.0 | U43: 0.0 | V43: 100.0
B44: Note: HSM-Provided values based on HSIS data for California (2002-2006)
B46: Table 10-15: Nighttime Crash Proportions for Unlighted Intersections
B48: Intersection Type | E48: Proportion of crashes that occur at night, pni
B49: Locally-Derived Values? | D49: No | E49: HSM Provided Values | G49: Locally-Derived Values
B50: 3ST | E50: 0.260 | G50: 0.300
B51: 4ST | E51: 0.244 | G51: 0.300
B52: 4SG | E52: 0.286 | G52: 0.300
B53: Note: HSM-Provided values based on HSIS data for California (2002-2006)

Sheet Construction - Do Not Delete (hidden)
B3: Lane Width | D3: Shoulder Width | F3: RHR
B4: 9 | D4: 0 | F4: 1
B5: 9.5 | D5: 1 | F5: 2
B6: 10 | D6: 2 | F6: 3
B7: 10.5 | D7: 3 | F7: 4
B8: 11 | D8: 4 | F8: 5
B9: 11.5 | D9: 5 | F9: 6
B10: 12 | D10: 6 | F10: 7
D11: 7
D12: 8
H15: Centerline | J15: Passing | L15: Local
D16: Shoulder Type | F16: Spiral | H16: Rumble Strips | J16: Lane | L16: Yes
D17: Paved | F17: Not Present | H17: Not Present | J17: Not Present | L17: No
D18: Gravel | F18: Present | H18: Present | J18: Present (1 lane)
D19: Composite | F19: One End Only | J19: Present (2 lanes)
D20: Turf
F22: TWLTL | H22: Lighting | J22: SpEnforce
F23: Not Present | H23: Not Present | J23: Not Present
F24: Present | H24: Present | J24: Present
D28: Itype | F28: Lapproach | H28: Rapproach | J28: Ilight | L28: Differ
D29: 3ST | F29: 0 | H29: 0 | J29: Not Present | L29: Yes
D30: 4ST | F30: 1 | H30: 1 | J30: Present | L30: No
D31: 4SG | F31: 2 | H31: 2
F32: 3 | H32: 3
F33: 4 | H33: 4
D36: Mwidth | F36: Division | H36: Sslope | J36: Shld2 | L36: Iapproach
D37: 10 | F37: Divided | H37: 1:2 or Steeper | J37: 0 | L37: 0
D38: 20 | F38: Undivided | H38: 1:4 | J38: 1 | L38: 1
D39: 30 | H39: 1:5 | J39: 2 | L39: 2
D40: 40 | H40: 1:6 | J40: 3
D41: 50 | H41: 1:7 or Flatter | J41: 4
D42: 60 | J42: 5
D43: 70 | J43: 6
D44: 80 | J44: 7
D45: 90 | J45: 8
D46: 100 | J46: 9
J47: 10
